bitfinex/quotes_BTCUSD_20211001
["timestamp","ask_amount","ask_price","bid_price","bid_amount"]
[1633047486656,0.02333991,43806.0,43804.0,0.24685867]
[1633047487054,0.49339255,43807.0,43800.0,0.24303406]
[1633047487254,0.49339255,43807.0,43805.0,0.00693133]
[1633047487656,0.49339255,43807.0,43800.0,0.0517007]
[1633047487857,0.49339255,43807.0,43800.0,0.028]
[1633047488056,0.49491333,43807.0,43803.0,0.22756253]
[1633047488858,0.49491333,43807.0,43800.0,0.024]
[1633047489062,0.342573,43805.0,43800.0,0.024]
[1633047489460,0.0005301,43804.0,43800.0,0.024]
[1633047489859,0.09436342,43801.0,43798.0,0.18444468]
[1633047490060,0.342573,43805.0,43801.0,0.1915279]
[1633047490459,0.15235433,43807.0,43801.0,0.1915279]
[1633047490859,0.02680738,43806.0,43798.0,0.21444468]
[1633047491164,0.07610326,43805.0,43798.0,0.03]
[1633047491562,0.0005301,43804.0,43798.0,0.03]
[1633047491762,0.0005301,43804.0,43795.0,0.0626699]
[1633047491964,0.0005301,43804.0,43797.0,0.20413981]
[1633047492159,0.07557316,43805.0,43797.0,0.20413981]
[1633047492362,0.07557316,43805.0,43800.0,0.17988536]
[1633047492559,0.00235433,43807.0,43800.0,0.17988536]
[1633047492760,0.00235433,43807.0,43801.0,0.05826]
[1633047492958,0.00288443,43807.0,43801.0,0.05826]
[1633047493361,0.0005301,43806.0,43798.0,0.0048762]
[1633047493563,0.09052808,43804.0,43798.0,0.0048762]
[1633047494566,0.09052808,43804.0,43798.0,0.0368762]
[1633047495364,0.09052808,43804.0,43798.0,0.0318762]
[1633047495963,0.09052808,43804.0,43795.0,0.0626699]
[1633047496360,0.02922986,43803.0,43795.0,0.0626699]
[1633047496563,0.02922986,43803.0,43795.0,0.1056699]
[1633047496760,0.02922986,43803.0,43798.0,0.0880746]
[1633047497363,0.02922986,43803.0,43800.0,0.24966618]
[1633047497567,0.24967099,43801.0,43795.0,0.1056699]
[1633047498364,0.24967099,43801.0,43795.0,0.0626699]
[1633047498566,0.0701982,43802.0,43795.0,0.1036699]
[1633047499573,0.20373331,43799.0,43795.0,0.1036699]
[1633047499978,0.00129963,43796.0,43795.0,0.0626699]
[1633047500170,0.23591041,43796.0,43795.0,0.0626699]
[1633047500569,0.62856841,43796.0,43795.0,0.0926699]
[1633047500969,0.34395763,43796.0,43795.0,0.0926699]
[1633047501369,0.00129963,43796.0,43795.0,0.0926699]
[1633047501570,0.00126928,43801.0,43795.0,0.0926699]
[1633047501768,0.00120721,43797.0,43795.0,0.0926699]
[1633047501969,0.02922469,43800.0,43795.0,0.0926699]
[1633047502567,0.02922469,43800.0,43795.0,0.1216699]
[1633047502772,0.25448995,43800.0,43795.0,0.1216699]
[1633047503171,0.00120231,43796.0,43795.0,0.1216699]
[1633047503774,0.00120231,43796.0,43795.0,0.0916699]
[1633047503974,0.00120231,43796.0,43795.0,0.0626699]
[1633047504170,0.00120231,43796.0,43786.0,0.19187553]
[1633047504371,0.00120231,43796.0,43785.0,0.2100206]
[1633047504569,0.04920231,43796.0,43795.0,0.031]
[1633047504973,0.39183431,43796.0,43795.0,0.031]
[1633047505170,0.44183431,43796.0,43795.0,0.031]
[1633047505971,0.39383431,43796.0,43789.0,0.41102639]
[1633047506172,0.34383431,43796.0,43789.0,0.22979002]
[1633047506572,0.08297372,43794.0,43789.0,0.05]
[1633047507475,0.0012708,43791.0,43789.0,0.05]
[1633047507873,0.0012708,43791.0,43785.0,0.08539246]
[1633047508374,0.00128385,43786.0,43775.0,0.22896116]
[1633047508577,0.00128385,43786.0,43785.0,0.052]
[1633047508578,0.77821396,43786.0,43785.0,0.052]
[1633047509177,0.77821396,43786.0,43777.0,0.22473187]
[1633047509374,0.09683584,43783.0,43777.0,0.22473187]
[1633047509774,0.17440876,43782.0,43777.0,0.22473187]
[1633047510177,0.17440876,43782.0,43775.0,0.22843106]
[1633047510576,0.00124168,43779.0,43777.0,0.047]
[1633047511175,0.56014376,43782.0,43778.0,0.22830927]
[1633047511378,0.21740876,43782.0,43778.0,0.22830927]
[1633047511578,0.043,43782.0,43778.0,0.22830927]
[1633047511977,0.17380213,43781.0,43778.0,0.22830927]
[1633047512178,0.17380213,43781.0,43777.0,2.67038236]
[1633047512379,0.17380213,43781.0,43777.0,2.62338236]
[1633047512581,0.21380213,43781.0,43778.0,0.009]
[1633047512777,0.04,43781.0,43778.0,0.009]
[1633047512978,0.02915858,43780.0,43778.0,0.009]
[1633047513176,0.02915858,43780.0,43779.0,0.20514944]
[1633047513779,0.2032387,43780.0,43779.0,0.43515744]
[1633047513980,0.02915858,43780.0,43779.0,0.43515744]
[1633047514579,0.072,43780.0,43779.0,0.43515744]
[1633047514981,0.072,43780.0,43779.0,0.20514944]
[1633047515181,0.072,43780.0,43779.0,0.43515744]
[1633047515581,0.072,43780.0,43779.0,0.20514944]
[1633047515783,0.51325587,43784.0,43779.0,0.20514944]
[1633047516382,0.342762,43780.0,43779.0,0.20514944]
[1633047516583,0.342762,43780.0,43779.0,0.20714944]
[1633047517785,0.342762,43780.0,43779.0,0.20514944]
[1633047518183,0.342762,43780.0,43779.0,0.20014944]
[1633047518384,0.37192238,43780.0,43779.0,0.20014944]
[1633047518583,0.43992238,43780.0,43779.0,0.20014944]
[1633047519986,0.37192238,43780.0,43779.0,0.20014944]
[1633047520187,0.342762,43780.0,43779.0,0.20014944]
[1633047520585,0.413762,43780.0,43779.0,0.20014944]
[1633047521187,0.413762,43780.0,43775.0,0.11]
[1633047521391,0.35762606,43779.0,43775.0,0.105]
[1633047521590,0.34276,43778.0,43775.0,0.105]
[1633047521794,0.34276,43778.0,43776.0,0.230008]
[1633047522190,0.51506625,43778.0,43776.0,0.230008]
[1633047522389,0.34276,43778.0,43777.0,0.12748372]
[1633047522590,0.36376,43778.0,43777.0,0.12748372]
[1633047522991,0.53644202,43778.0,43777.0,0.12748372]
[1633047523392,0.53644202,43778.0,43776.0,0.015]
[1633047523595,0.56559548,43778.0,43776.0,0.015]
[1633047523992,0.37191346,43778.0,43775.0,0.105]
[1633047524194,0.37191346,43778.0,43776.0,0.230008]
[1633047524448,0.40991346,43778.0,43775.0,0.134]
[1633047524651,0.40991346,43778.0,43776.0,0.19357103]
[1633047525651,0.38076,43778.0,43776.0,0.19357103]
[1633047526051,0.34276,43778.0,43776.0,0.19357103]
[1633047526650,0.38276,43778.0,43776.0,0.21857103]
[1633047527851,0.34276,43778.0,43776.0,0.19357103]
[1633047528653,0.38276,43778.0,43776.0,0.22657103]
[1633047528855,0.02915177,43777.0,43776.0,0.22657103]
[1633047530054,0.02915177,43777.0,43776.0,0.19357103]
[1633047530654,0.07115177,43777.0,43776.0,0.22557103]
[1633047532253,0.02915177,43777.0,43776.0,0.19357103]
[1633047532854,0.02915177,43777.0,43776.0,0.22457103]
[1633047532855,0.07315177,43777.0,43776.0,0.22457103]
[1633047534256,0.02915177,43777.0,43776.0,0.19357103]
[1633047535863,0.01088952,44083.0,43777.0,0.230008]
[1633047535864,0.51993899,43791.0,43777.0,0.230008]
[1633047536063,1.66492998,43795.0,43778.0,0.0005301]
[1633047536064,0.06293676,43794.0,43778.0,0.0005301]
[1633047536263,0.63179472,43795.0,43785.0,0.11753816]
[1633047536463,0.06299707,43795.0,43786.0,0.18810826]
[1633047536659,0.06295708,43796.0,43787.0,0.0005301]
[1633047536862,0.19339929,43797.0,43786.0,0.07065337]
[1633047536863,0.29002436,43794.0,43786.0,0.07065337]
[1633047537058,0.19918396,43794.0,43786.0,0.07065337]
[1633047537257,0.19918396,43794.0,43787.0,0.0005301]
[1633047537859,0.21718396,43794.0,43787.0,0.0455301]
[1633047538058,0.018,43794.0,43788.0,0.22840913]
[1633047538259,0.342641,43794.0,43788.0,0.22840913]
[1633047539262,0.342641,43794.0,43788.0,0.22893923]
[1633047539664,0.342641,43794.0,43789.0,0.0005301]
[1633047539863,0.378641,43794.0,43789.0,0.0005301]
[1633047540861,0.378641,43794.0,43790.0,0.01565772]
[1633047541062,0.342641,43794.0,43790.0,0.01565772]
[1633047541863,0.1,43793.0,43790.0,0.04465772]
[1633047542262,0.0012498,43792.0,43790.0,0.15465772]
[1633047542463,0.0012498,43792.0,43791.0,0.0005301]
[1633047542661,0.0012498,43792.0,43786.0,0.2494749]
[1633047542662,0.0012498,43792.0,43786.0,0.17882153]
[1633047542864,0.0012498,43792.0,43778.0,0.21300214]
[1633047543062,0.0012498,43792.0,43779.0,0.230008]
[1633047543263,0.3439138,43792.0,43783.0,0.12429964]
[1633047543665,0.3939138,43792.0,43783.0,0.12429964]
[1633047543869,0.0862498,43792.0,43783.0,0.15529964]
[1633047544065,0.0862498,43792.0,43784.0,0.17598844]
[1633047544266,0.035,43792.0,43784.0,0.17598844]
[1633047544468,0.035,43792.0,43789.0,0.21223421]
[1633047545270,0.00125465,43800.0,43790.0,0.09032451]
[1633047545473,0.00125465,43800.0,43791.0,0.17476391]
[1633047545674,0.342619,43797.0,43791.0,0.17476391]
[1633047545876,0.342619,43797.0,43790.0,0.12632451]
[1633047546076,0.07682907,43796.0,43790.0,0.036]
[1633047546274,0.20397846,43793.0,43790.0,0.036]
[1633047546481,0.23017621,43800.0,43791.0,0.4052393]
[1633047546482,0.039,43800.0,43791.0,0.4052393]
[1633047546674,0.039,43800.0,43797.0,0.0012997]
[1633047546873,0.039,43800.0,43799.0,0.00129227]
[1633047547073,0.039,43800.0,43799.0,0.54523582]
[1633047547276,0.039,43800.0,43799.0,0.78822222]
[1633047547474,0.039,43800.0,43799.0,1.11542259]
[1633047547674,0.039,43800.0,43799.0,1.33862259]
[1633047547873,0.015,43800.0,43799.0,1.38862259]
[1633047548076,0.015,43800.0,43799.0,1.14563619]
[1633047548275,0.015,43800.0,43799.0,0.7111165]
[1633047548473,0.015,43800.0,43799.0,0.8118701]
[1633047548676,0.015,43800.0,43799.0,1.0350701]
[1633047549078,0.015,43800.0,43799.0,0.38391613]
[1633047549275,0.04,43809.0,43799.0,0.33391613]
[1633047549475,0.04,43809.0,43799.0,0.10390813]
[1633047549874,0.076,43809.0,43799.0,0.14890813]
[1633047550275,0.21024892,43807.0,43799.0,0.14890813]
[1633047551077,0.21024892,43807.0,43799.0,0.10390813]
[1633047551276,0.04,43809.0,43799.0,0.10390813]
[1633047551476,0.04,43809.0,43804.0,0.09696654]
[1633047551683,0.04,43809.0,43800.0,0.09097215]
[1633047551879,0.064,43809.0,43805.0,0.00533053]
[1633047552278,0.24915779,43809.0,43805.0,0.00533053]
[1633047553078,0.04,43809.0,43805.0,0.00533053]
[1633047553278,0.00127784,43806.0,43805.0,0.00533053]
[1633047553680,0.04,43809.0,43805.0,0.00533053]
[1633047553878,0.033,43806.0,43805.0,0.04233053]
[1633047554079,0.033,43806.0,43805.0,0.25798959]
[1633047554680,0.033,43806.0,43805.0,0.25265906]
[1633047555283,0.04152064,43809.0,43805.0,0.21565906]
[1633047555482,0.04152064,43809.0,43800.0,0.09097215]
[1633047555483,0.04152064,43809.0,43806.0,0.17602367]
[1633047555681,0.04152064,43809.0,43800.0,0.09097215]
[1633047555682,0.04152064,43809.0,43801.0,0.17976309]
[1633047555882,0.05852064,43809.0,43805.0,0.024]
[1633047556684,0.05852064,43809.0,43806.0,0.17618508]
[1633047556885,0.05852064,43809.0,43806.0,0.35250988]
[1633047557286,0.04152064,43809.0,43806.0,0.35250988]
[1633047557489,0.04152064,43809.0,43808.0,0.10842657]
[1633047557683,0.04152064,43809.0,43808.0,0.29432909]
[1633047557886,0.07352064,43809.0,43808.0,0.60679528]
[1633047558491,1.0,43817.0,43809.0,0.032]
[1633047558689,1.0,43817.0,43816.0,0.00125692]
[1633047558886,1.0,43817.0,43816.0,0.31998308]
[1633047559083,1.0,43817.0,43816.0,0.71086085]
[1633047559487,1.0,43817.0,43816.0,1.01025044]
[1633047559686,0.0007,43817.0,43816.0,1.23345044]
[1633047559893,0.0007,43817.0,43816.0,1.62881544]
[1633047560087,0.0007,43817.0,43816.0,1.72881544]
[1633047560287,0.0007,43817.0,43816.0,1.40561544]
[1633047560487,0.02527805,43817.0,43816.0,1.40561544]
[1633047560889,0.02527805,43817.0,43816.0,1.62881544]
[1633047561288,0.02527805,43817.0,43816.0,1.57581544]
[1633047561688,0.02527805,43817.0,43816.0,1.64581544]
[1633047561888,0.02527805,43817.0,43816.0,1.70281544]
[1633047562295,0.02527805,43817.0,43816.0,0.44572616]
[1633047562495,0.02527805,43817.0,43816.0,0.357008]
[1633047562798,0.0265428,43817.0,43816.0,0.127]
[1633047562990,0.00196475,43817.0,43816.0,0.127]
[1633047563192,0.18091889,43817.0,43816.0,0.07]
[1633047563398,0.00196475,43817.0,43816.0,0.07]
[1633047563591,0.00196475,43817.0,43816.0,0.18545711]
[1633047563790,0.00196475,43817.0,43816.0,0.23045711]
[1633047563991,0.0007,43817.0,43816.0,0.469179]
[1633047564790,0.0007,43817.0,43816.0,0.35372189]
[1633047565791,0.0007,43817.0,43816.0,0.39072189]
[1633047565990,0.02527811,43817.0,43816.0,0.39072189]
[1633047566990,0.02527811,43817.0,43816.0,0.152]
[1633047567194,0.02527811,43817.0,43816.0,0.300008]
[1633047567400,0.02527811,43817.0,43816.0,0.47969899]
[1633047567593,0.02527811,43817.0,43816.0,0.300008]
[1633047567790,0.02527811,43817.0,43816.0,0.370008]
[1633047568391,0.0007,43817.0,43816.0,0.54550789]
[1633047569194,0.0007,43817.0,43816.0,0.47550789]
[1633047569795,0.0007,43817.0,43816.0,0.54250789]
[1633047570593,0.0007,43817.0,43816.0,0.367008]
[1633047571396,0.02527816,43817.0,43816.0,0.300008]
[1633047571594,0.02527816,43817.0,43816.0,0.49109796]
[1633047571793,0.02527816,43817.0,43816.0,0.54609796]
[1633047572794,0.02527816,43817.0,43816.0,0.88847896]
[1633047573195,0.02527816,43817.0,43816.0,0.83347896]
[1633047573397,0.02527816,43817.0,43816.0,0.300008]
[1633047573798,0.02527816,43817.0,43816.0,0.365008]
[1633047574000,0.0007,43817.0,43816.0,0.135]
[1633047574198,0.0007,43817.0,43813.0,0.11605294]
[1633047574199,0.00196822,43817.0,43813.0,0.11605294]
[1633047575856,0.04596822,43817.0,43813.0,0.16205294]
[1633047576856,0.07054129,43817.0,43813.0,0.16205294]
[1633047577056,0.07054129,43817.0,43813.0,0.11605294]
[1633047577256,0.02654129,43817.0,43813.0,0.11605294]
[1633047577856,0.06954129,43817.0,43813.0,0.16405294]
[1633047578657,0.06954129,43817.0,43816.0,2.03916185]
[1633047578856,0.06827307,43817.0,43816.0,2.03916185]
[1633047579057,0.06327307,43817.0,43816.0,2.03916185]
[1633047579256,0.05827307,43817.0,43816.0,2.03916185]
[1633047579462,0.01527307,43817.0,43816.0,2.03916185]
[1633047579657,0.01527307,43817.0,43816.0,2.21761787]
[1633047579860,0.01527307,43817.0,43816.0,2.24561787]
[1633047579861,0.049,43817.0,43816.0,2.24561787]
[1633047580057,0.049,43817.0,43816.0,2.06716185]
[1633047581160,0.00125023,43822.0,43813.0,0.11605294]
[1633047581658,0.0005301,43821.0,43813.0,0.11605294]
[1633047581861,0.0005301,43821.0,43813.0,0.16205294]
[1633047582059,0.04325023,43822.0,43813.0,0.16205294]
[1633047582060,0.03878033,43822.0,43813.0,0.16205294]
[1633047582260,0.01992827,43820.0,43813.0,0.16205294]
[1633047582658,0.01992827,43820.0,43813.0,0.046]
[1633047583259,0.01992827,43820.0,43811.0,0.18204846]
[1633047583661,0.01992827,43820.0,43819.0,0.00126931]
[1633047583861,0.01992827,43820.0,43819.0,0.34544869]
[1633047584059,0.01992827,43820.0,43819.0,0.11544069]
[1633047584661,0.01992827,43820.0,43819.0,0.00126931]
[1633047584860,0.01992827,43820.0,43813.0,0.19831925]
[1633047585063,0.01992827,43820.0,43811.0,0.0525301]
[1633047585269,0.01992827,43820.0,43811.0,0.0005301]
[1633047585466,0.00126245,43822.0,43813.0,0.00994141]
[1633047585662,0.20540282,43818.0,43813.0,0.00994141]
[1633047585863,0.34369245,43822.0,43814.0,0.230008]
[1633047586065,0.2229318,43826.0,43815.0,0.0005301]
[1633047586265,0.1229318,43826.0,43815.0,0.0005301]
[1633047586462,0.0729318,43826.0,43815.0,0.0005301]
[1633047586863,0.20743863,43821.0,43814.0,0.34419393]
[1633047587066,0.20743863,43821.0,43814.0,0.34366383]
[1633047587666,0.01993004,43820.0,43814.0,0.34366383]
[1633047587864,0.01993004,43820.0,43814.0,0.39366383]
[1633047588068,0.01993004,43820.0,43815.0,0.230008]
[1633047588264,0.01993004,43820.0,43815.0,0.2305381]
[1633047588665,0.01993004,43820.0,43818.0,0.20414387]
[1633047589066,0.01993004,43820.0,43814.0,0.05178793]
[1633047589269,0.01993004,43820.0,43814.0,0.00178793]
[1633047589669,0.01993004,43820.0,43814.0,0.00125783]
[1633047589867,0.01993004,43820.0,43814.0,0.05225783]
[1633047590269,0.01993004,43820.0,43814.0,0.39465983]
[1633047590470,0.01993004,43820.0,43815.0,0.21944084]
[1633047590868,0.23654884,43822.0,43815.0,0.21944084]
[1633047591068,0.23654884,43822.0,43816.0,0.00993524]
[1633047591269,0.18654884,43822.0,43816.0,0.00993524]
[1633047591670,0.0729318,43826.0,43820.0,0.0941139]
[1633047591873,0.342383,43827.0,43820.0,0.27257553]
[1633047592071,0.392383,43827.0,43820.0,0.27257553]
[1633047592270,0.05,43827.0,43820.0,0.0941139]
[1633047592471,0.04,43829.0,43820.0,0.0941139]
[1633047592673,0.23092705,43828.0,43820.0,0.27391512]
[1633047593071,0.28092705,43828.0,43820.0,0.27391512]
[1633047593275,0.342398,43825.0,43820.0,2.46851271]
[1633047593473,0.392398,43825.0,43820.0,2.46851271]
[1633047593873,0.392398,43825.0,43815.0,0.21944084]
[1633047593874,0.01995242,43827.0,43815.0,0.21944084]
[1633047594071,0.11995242,43827.0,43815.0,0.21944084]
[1633047594273,0.342426,43822.0,43815.0,0.21944084]
[1633047594472,0.392426,43822.0,43815.0,0.21944084]
[1633047595271,0.20557753,43820.0,43815.0,0.21944084]
[1633047595473,0.05,43820.0,43815.0,0.21944084]
[1633047595672,0.392426,43822.0,43815.0,0.21997094]
[1633047595875,0.392426,43822.0,43815.0,0.28244084]
[1633047596075,0.342429,43821.0,43815.0,0.28244084]
[1633047596272,0.05,43822.0,43815.0,0.28244084]
[1633047596472,0.05,43822.0,43816.0,0.0005301]
[1633047596773,0.35028854,43823.0,43816.0,0.0005301]
[1633047596972,0.05,43823.0,43816.0,0.0005301]
[1633047597375,0.05,43825.0,43816.0,0.0005301]
[1633047597774,0.392397,43826.0,43816.0,0.0005301]
[1633047597973,0.392397,43826.0,43816.0,0.0625301]
[1633047597974,0.66753817,43826.0,43816.0,0.0625301]
[1633047598376,0.66753817,43826.0,43817.0,0.0005301]
[1633047598576,0.17524846,43819.0,43816.0,0.062]
[1633047598980,0.00122905,43818.0,43816.0,0.062]
[1633047599183,0.00120256,43817.0,43816.0,0.062]
[1633047599376,0.00120256,43817.0,43802.0,0.7953]
[1633047599578,0.20833751,43810.0,43802.0,0.7953]
[1633047599782,0.4225774,43810.0,43802.0,0.86830028]
[1633047599982,0.70275243,43810.0,43809.0,0.068]
[1633047600182,0.18338,43810.0,43809.0,0.068]
[1633047600380,0.13338,43810.0,43809.0,0.068]
[1633047600982,0.17575985,43815.0,43809.0,0.068]
[1633047601183,0.17575985,43815.0,43809.0,0.032]
[1633047601379,0.22575985,43815.0,43809.0,0.032]
[1633047601580,0.22575985,43815.0,43809.0,2.45884939]
[1633047601980,0.28375985,43815.0,43809.0,2.45884939]
[1633047602379,0.28375985,43815.0,43809.0,2.39280019]
[1633047602783,0.108,43815.0,43809.0,2.39280019]
[1633047603183,0.108,43815.0,43802.0,0.23960028]
[1633047603585,0.108,43815.0,43802.0,0.1666]
[1633047603785,0.2078361,43810.0,43802.0,0.1666]
[1633047603981,0.18777286,43809.0,43803.0,0.230008]
[1633047604383,0.23277286,43809.0,43803.0,0.230008]
[1633047604582,0.045,43809.0,43808.0,0.09200411]
[1633047604789,0.63124147,43824.0,43816.0,0.11053777]
[1633047604985,0.63124147,43824.0,43820.0,0.00121198]
[1633047604986,0.18032182,43824.0,43820.0,0.00121198]
[1633047605197,0.01995242,43827.0,43823.0,0.10180768]
[1633047605386,0.01995242,43827.0,43824.0,0.1858345]
[1633047605694,0.01995242,43827.0,43825.0,0.23177911]
[1633047605889,0.01995242,43827.0,43826.0,0.20986274]
[1633047606092,0.01995242,43827.0,43826.0,0.66497523]
[1633047606284,0.04,43829.0,43826.0,0.88946377]
[1633047606490,0.04,43829.0,43828.0,0.73123862]
[1633047606491,0.00153149,43829.0,43828.0,0.73123862]
[1633047606684,0.00153149,43829.0,43828.0,2.16596291]
[1633047606886,0.0002,43842.0,43840.0,0.15839144]
[1633047607087,0.0002,43842.0,43841.0,0.00122653]
[1633047607290,0.0002,43842.0,43841.0,0.230008]
[1633047607488,0.0002,43842.0,43841.0,0.00127458]
[1633047607686,0.0002,43842.0,43841.0,0.23128258]
[1633047607888,0.0002,43842.0,43841.0,0.45448258]
[1633047608087,0.0002,43842.0,43841.0,0.48201268]
[1633047609287,0.0002,43842.0,43841.0,0.45501268]
[1633047610085,0.0002,43842.0,43841.0,0.51601268]
[1633047610686,0.0002,43842.0,43841.0,0.29281268]
[1633047611089,0.0002,43842.0,43841.0,0.51601268]
[1633047611290,0.0002,43842.0,43841.0,0.55501268]
[1633047611491,0.0002,43842.0,43841.0,0.55448258]
[1633047611692,0.0002,43842.0,43841.0,0.23128258]
[1633047611894,0.0002,43842.0,43841.0,0.230008]
[1633047612089,0.0002,43842.0,43841.0,0.285008]
[1633047612490,0.0002,43842.0,43841.0,0.28621806]
[1633047612690,0.0002,43842.0,43841.0,0.28674816]
[1633047612891,0.0002,43842.0,43841.0,0.28621806]
[1633047613090,0.0002,43842.0,43841.0,0.28674816]
[1633047613490,0.0002,43842.0,43841.0,0.23174816]
[1633047614092,0.0002,43842.0,43841.0,0.279008]
[1633047614892,0.0002,43842.0,43841.0,0.36336148]
[1633047615096,0.03603309,43849.0,43841.0,0.36336148]
[1633047615293,0.03603309,43849.0,43847.0,0.21515714]
[1633047615493,0.03603309,43849.0,43841.0,0.13335348]
[1633047615696,0.03603309,43849.0,43842.0,0.230008]
[1633047615894,0.03603309,43849.0,43841.0,0.08435348]
[1633047616094,0.03603309,43849.0,43842.0,0.0005301]
[1633047616497,0.03603309,43849.0,43847.0,2.69316498]
[1633047616694,0.03603309,43849.0,43848.0,0.230008]
[1633047618097,0.03603309,43849.0,43848.0,0.262008]
[1633047619297,0.03603309,43849.0,43848.0,0.230008]
[1633047620098,0.03603309,43849.0,43848.0,0.264008]
[1633047620358,0.03603309,43849.0,43848.0,0.36161684]
[1633047620498,0.03603309,43849.0,43848.0,0.264008]
[1633047620699,0.5002,43850.0,43848.0,0.264008]
[1633047620700,0.43623309,43850.0,43848.0,0.264008]
[1633047621504,0.43623309,43850.0,43848.0,0.230008]
[1633047622102,0.43623309,43850.0,43848.0,0.259008]
[1633047623107,0.43623309,43850.0,43849.0,0.6232]
[1633047623369,0.43623309,43850.0,43849.0,0.45495357]
[1633047623507,0.43623309,43850.0,43849.0,0.55495357]
[1633047623703,0.43623309,43850.0,43849.0,0.33175357]
[1633047624104,0.43623309,43850.0,43849.0,0.38575357]
[1633047624304,0.43623309,43850.0,43849.0,0.60842347]
[1633047625102,0.43623309,43850.0,43849.0,0.38522347]
[1633047625503,0.43623309,43850.0,43849.0,0.33122347]
[1633047625905,0.43623309,43850.0,43849.0,0.3485679]
[1633047626105,0.43623309,43850.0,43849.0,0.4095679]
[1633047626303,0.43775227,43850.0,43849.0,0.4095679]
[1633047626906,0.44984843,43850.0,43849.0,0.39222347]
[1633047627506,0.44984843,43850.0,43849.0,0.29222347]
[1633047627705,0.44984843,43850.0,43849.0,0.39222347]
[1633047628104,0.44984843,43850.0,43849.0,0.45522347]
[1633047629511,0.44984843,43850.0,43849.0,0.33122347]
[1633047630104,0.44984843,43850.0,43849.0,0.39022347]
[1633047630910,0.44984843,43850.0,43849.0,0.289008]
[1633047631307,0.43775227,43850.0,43849.0,0.30635243]
[1633047631509,0.43775227,43850.0,43849.0,0.24735243]
[1633047631909,0.43895799,43850.0,43843.0,0.09258754]
[1633047632117,0.17939625,43849.0,43840.0,0.23658566]
[1633047632509,0.20015453,43849.0,43840.0,0.23658566]
[1633047632710,0.54238053,43849.0,43840.0,0.23658566]
[1633047632911,0.20463215,43845.0,43842.0,0.20606099]
[1633047633115,0.02075828,43849.0,43842.0,0.31667915]
[1633047633314,0.02075828,43849.0,43843.0,0.35478129]
[1633047633909,0.02075828,43849.0,43843.0,0.230008]
[1633047634114,0.02075828,43849.0,43848.0,0.22810851]
[1633047634509,0.02075828,43849.0,43848.0,0.27810851]
[1633047635110,0.02075828,43849.0,43848.0,0.11968154]
[1633047635314,0.02075828,43849.0,43848.0,0.06968154]
[1633047635515,0.02075828,43849.0,43848.0,0.11968154]
[1633047636113,0.02075828,43849.0,43848.0,0.16768154]
[1633047636317,0.02075828,43849.0,43848.0,0.11768154]
[1633047636517,0.02199191,43849.0,43848.0,0.048]
[1633047636716,0.00123363,43849.0,43848.0,0.048]
[1633047636920,0.50157616,43850.0,43848.0,0.05667627]
[1633047637117,0.43793615,43850.0,43848.0,0.05667627]
[1633047637517,0.43793615,43850.0,43848.0,0.00867627]
[1633047637918,0.02076679,43849.0,43847.0,0.342124]
[1633047638118,0.02076679,43849.0,43848.0,0.277008]
[1633047638390,0.02076679,43849.0,43848.0,0.327008]
[1633047638517,0.02076679,43849.0,43848.0,0.097]
[1633047638721,0.02076679,43849.0,43848.0,0.047]
[1633047638722,0.02206388,43849.0,43848.0,0.047]
[1633047639521,0.19545278,43845.0,43843.0,0.22811042]
[1633047639721,0.17782584,43848.0,43844.0,0.230008]
[1633047639925,0.02206388,43849.0,43843.0,0.22811042]
[1633047640126,0.19191034,43849.0,43843.0,0.50723042]
[1633047640322,0.19191034,43849.0,43847.0,1.75910754]
[1633047640522,0.19191034,43849.0,43847.0,0.05]
[1633047640723,0.02206388,43849.0,43843.0,0.55723042]
[1633047640923,0.19508706,43847.0,43843.0,0.55723042]
[1633047641524,0.19508706,43847.0,43843.0,0.50623042]
[1633047641725,0.02206388,43849.0,43844.0,0.230008]
[1633047641926,0.02206388,43849.0,43843.0,0.50623042]
[1633047642123,0.02206388,43849.0,43844.0,0.230008]
[1633047642323,0.00129709,43849.0,43844.0,0.2386944]
[1633047642528,0.43793615,43850.0,43844.0,0.2690624]
[1633047642724,0.19370667,43849.0,43844.0,0.2690624]
[1633047642924,8.847e-05,43848.0,43844.0,0.17268398]
[1633047643324,0.02084685,43848.0,43844.0,0.16399758]
[1633047643727,0.02084685,43848.0,43845.0,0.228096]
[1633047643926,0.02084685,43848.0,43845.0,0.278096]
[1633047644126,0.02084685,43848.0,43847.0,0.2252767]
[1633047644526,0.02084685,43848.0,43847.0,0.2752767]
[1633047646133,0.05884685,43848.0,43847.0,0.3222767]
[1633047646531,0.05884685,43848.0,43847.0,0.097]
[1633047646730,0.13747966,43848.0,43847.0,0.047]
[1633047647391,0.05884685,43848.0,43847.0,0.047]
[1633047647531,0.20839097,43848.0,43843.0,0.74736809]
[1633047647733,0.18763259,43848.0,43843.0,0.74736809]
[1633047647931,0.18763259,43848.0,43847.0,0.00868235]
[1633047648929,0.02076013,43847.0,43845.0,0.278101]
[1633047649332,0.02076013,43847.0,43846.0,0.229732]
[1633047650133,0.05876013,43847.0,43846.0,0.278732]
[1633047650534,0.05876013,43847.0,43846.0,0.049]
[1633047650735,0.24949079,43847.0,43846.0,0.049]
[1633047650932,0.37911565,43847.0,43846.0,0.049]
[1633047651332,0.31551179,43847.0,43846.0,0.049]
[1633047651534,0.37751179,43847.0,43840.0,0.23658566]
[1633047651735,0.21436472,43841.0,43840.0,0.23658566]
[1633047651934,0.72965921,43841.0,43840.0,0.23658566]
[1633047652135,0.79568021,43841.0,43840.0,0.27558566]
[1633047652532,0.58258743,43841.0,43840.0,0.27558566]
[1633047652936,0.58358932,43841.0,43840.0,0.27558566]
[1633047653393,0.58358932,43841.0,43840.0,0.28429437]
[1633047653535,0.58358932,43841.0,43840.0,0.24529437]
[1633047653536,0.78748548,43841.0,43840.0,0.24529437]
[1633047653936,0.78756701,43841.0,43840.0,0.24529437]
[1633047654133,0.84764854,43841.0,43840.0,0.24529437]
[1633047654333,0.86838673,43841.0,43840.0,0.23658566]
[1633047655133,0.69436335,43841.0,43840.0,0.23658566]
[1633047655535,0.63436335,43841.0,43840.0,0.23658566]
[1633047655735,0.08819419,43841.0,43840.0,0.28658566]
[1633047655934,0.02217319,43841.0,43840.0,0.28658566]
[1633047656134,0.08190125,43841.0,43840.0,0.51631766]
[1633047656535,0.08190125,43841.0,43840.0,0.58953801]
[1633047657333,0.08190125,43841.0,43840.0,0.51631766]
[1633047657737,0.08190125,43841.0,43840.0,0.23658566]
[1633047657738,0.21081611,43841.0,43840.0,0.23658566]
[1633047657940,0.27805515,43841.0,43840.0,0.23658566]
[1633047658137,0.33805515,43841.0,43840.0,0.03852851]